Cogmind - Beta 11 @@@ ROGUE MODE // 2022.03.20 @ 20:56:54 Player: StarSirius Result: Destroyed by L-31 Rogue with Katana Performance ------------- Evolutions (1) 500 Regions Visited (4) 800 Robots Destroyed (5) 25 Value Destroyed (110) 110 Prototype IDs (0) 0 Alien Tech Used (0) 0 Bonus (0) 0 TOTAL SCORE: 1435 Bonus ------- None Cogmind --------- Core Integrity 0/400 Matter 41/300 Energy 91/100 System Corruption 8% Temperature Hot (277) Movement Core (50) Location -9/Mines Parts ------- > --- POWER (1) -------- (None) > --- PROPULSION (2) --- (None) > --- UTILITY (4) ------ (None) > --- WEAPON (2) ------- (None) > --- INVENTORY (5) ---- Large Storage Unit Peak State ------------ > --- POWER ------------ Light Ion Engine > --- PROPULSION ------- VSS Leg Flight Unit > --- UTILITY ---------- Visual Processing Unit > --- WEAPON ----------- Mini Grenade Launcher Mini Grenade Launcher > --- INVENTORY -------- Flight Unit Light Assault Rifle Grenade Launcher [Rating: 11] Favorites ----------- Power Light Ion Engine Engine Light Ion Engine Propulsion Flight Unit Leg VSS Leg Flight Unit Flight Unit Utility Visual Processing Unit Processor Visual Processing Unit Weapon Mini Grenade Launcher Energy Gun Beam Rifle Ballistic Gun Light Assault Rifle Launcher Mini Grenade Launcher Build | -11 -10 -10 -9 -9 ------- Run | Scr Mat Min Mat Min Slots Evolved 2 | . . . 2 . Power . | . . . . . Propulsion . | . . . . . Utility 2 | . . . 2 . Weapon . | . . . . . Parts Attached 12 | . 4 2 4 2 Power 1 | . . 1 . . Engine 1 | . . 1 . . Core . | . . . . . Reactor . | . . . . . Propulsion 4 | . 1 1 2 . Treads . | . . . . . Leg 1 | . . . 1 . Wheel . | . . . . . Hover . | . . . . . Flight 3 | . 1 1 1 . Utility 1 | . 1 . . . Device . | . . . . . Storage . | . . . . . Processor 1 | . 1 . . . Hackware . | . . . . . Protection . | . . . . . Artifact . | . . . . . Weapon 6 | . 2 . 2 2 Energy Gun 2 | . . . . 2 Energy Cannon . | . . . . . Ballistic Gun 1 | . . . 1 . Ballistic Cannon . | . . . . . Launcher 3 | . 2 . 1 . Special Weapon . | . . . . . Impact Weapon . | . . . . . Slashing Weapon . | . . . . . Piercing Weapon . | . . . . . Special Melee Weapon . | . . . . . Unidentified Prototypes . | . . . . . Parts Lost 10 | . . . 9 1 Power 1 | . . . 1 . Propulsion 3 | . . . 3 . Utility 1 | . . . 1 . Weapon 5 | . . . 4 1 Highest Loss Streak 9 | . . . 9 1 To Critical Strikes . | . . . . . Average Slot Usage (%) 41 | . 34 61 46 8 Engine 3 | . . 2 8 . Leg 3 | . . . 9 . Flight 6 | . . 16 7 . Processor 8 | . 12 14 3 . Energy Gun 1 | . . . . 8 Ballistic Gun 2 | . . . 6 . Launcher 16 | . 21 28 9 . Naked Turns 28 | . 12 . 5 11 Heaviest Build 5 | . 2 5 5 3 Greatest Support 12 | 3 4 8 12 3 Greatest Overweight (x) . | . . . . . Average Overweight (x) . | . . . . . Largest Inventory Capacity 5 | 5 5 5 5 5 Average Capacity 5 | 5 5 5 5 5 Most Carried 3 | . . 2 3 1 Average Carried . | . . . 1 . Final Capacity 5 | 5 5 5 5 5 Final Carried 2 | . . 2 . 1 Class Distribution -------------------- 100% | Mutant Dominant Class ---------------- Mutant | -10/Materials Mutant | -10/Mines Mutant | -9/Materials Mutant | -9/Mines Resources | -11 -10 -10 -9 -9 ----------- Run | Scr Mat Min Mat Min Matter Collected 72 | . . . 72 . Remotely . | . . . . . Salvage Created 69 | . . 4 65 . Parts 5 | . . 4 1 . Haulers Intercepted . | . . . . . Recyclers Shooed . | . . . . . Parts Field Recycled . | . . . . . Retrieved Matter . | . . . . . Parts Self-Destructed . | . . . . . Prevented . | . . . . . Kills | -11 -10 -10 -9 -9 ------- Run | Scr Mat Min Mat Min Combat Hostiles Destroyed 5 | . . 3 2 . Guns 1 | . . . 1 . AOE 4 | . . 3 1 . Classes Destroyed 3 | . . 1 2 . Swarmer 3 | . . 3 . . Grunt 1 | . . . 1 . Brawler 1 | . . . 1 . Best Kill Streak 3 | . . 3 1 . Combat Bots Only 3 | . . 3 1 . Max Kills in Single Turn 1 | . . 1 1 . Gunslinging . | . . . . . Exploded 1 | . . 1 1 . Melee . | . . . . . Uniques/NPCs Destroyed . | . . . . . Combat | -11 -10 -10 -9 -9 -------- Run | Scr Mat Min Mat Min Damage Taken 963 | . 44 67 686 166 Core 488 | . 34 43 291 120 Absorbed by Shields . | . . . . . Core Remaining (%) 84 | 100 . 69 . . Volleys Fired 29 | . . 4 18 7 Largest 1 | . . 1 1 1 Hottest 56 | . . 30 30 56 Shots Fired 28 | . . 4 18 6 Gun 22 | . . . 16 6 Cannon . | . . . . . Launcher 6 | . . 4 2 . Special . | . . . . . Kinetic 16 | . . . 16 . Thermal 6 | . . . . 6 Explosive 6 | . . 4 2 . Electromagnetic . | . . . . . Robot Hit Streak 6 | . . . 4 6 Robot Miss Streak 6 | . . . 6 1 Penetration Max . | . . . . . Secondary Targets . | . . . . . Shots Hit Robots 13 | . . . 8 5 Core Hits 9 | . . 2 6 1 Critical Kills . | . . . . . Critical Parts Destroyed . | . . . . . Critical Strikes . | . . . . . Melee Attacks . | . . . . . Impact . | . . . . . Slashing . | . . . . . Piercing . | . . . . . Sneak Attacks . | . . . . . Combat Hostiles . | . . . . . Follow-up Attacks . | . . . . . Damage Inflicted 448 | . 22 201 152 73 Guns 133 | . . . 60 73 Cannons . | . . . . . Explosions 285 | . . 201 84 . Melee . | . . . . . Ramming 30 | . 22 . 8 . Kinetic 60 | . . . 60 . Thermal 73 | . . . . 73 Explosive 285 | . . 201 84 . Electromagnetic . | . . . . . Impact . | . . . . . Slashing . | . . . . . Piercing . | . . . . . Highest Corruption 8 | . . . 8 8 Average Corruption 6 | . . . 6 8 Corruption Purged . | . . . . . Corruption Blocked . | . . . . . Effects 5 | . . . 2 3 Message Errors 2 | . . . 2 . Heat Flow Errors 1 | . . . . 1 Data Loss (major) 1 | . . . . 1 Weapon Failures 1 | . . . . 1 Overload Shots . | . . . . . Overflow Damage 30 | . . 18 12 . Projectiles . | . . . . . Explosions 30 | . . 18 12 . Melee . | . . . . . Knockbacks . | . . . . . Impact . | . . . . . Kinetic . | . . . . . Secondary . | . . . . . Self-Inflicted Damage 132 | . 10 43 79 . Shots 3 | . . 1 2 . Rammed 3 | . 3 . . . Targets Rammed 5 | . 3 . 2 . Kicked 2 | . . . 2 . Crushed . | . . . . . Highest Temperature 277 | . . . 3 277 Average Temperature 103 | . . . 2 273 Received Heat Transfer 231 | . 18 . 189 24 Siege Activations . | . . . . . Robots Corrupted . | . . . . . Combat Hostiles . | . . . . . Parts Fried . | . . . . . Impact Corruptions . | . . . . . Robots Melted . | . . . . . Combat Hostiles . | . . . . . Parts Melted . | . . . . . Heat Transferred 185 | . . . . 185 Parts Sabotaged . | . . . . . Parts Stolen . | . . . . . Parts Stripped . | . . . . . Power Chain Reactions . | . . . . . Missiles Intercepted . | . . . . . Alert | -11 -10 -10 -9 -9 ------- Run | Scr Mat Min Mat Min Peak Influence 165 | . 45 165 121 60 Initial 64 | . . 17 64 45 Average 49 | . 7 60 83 59 Maximum Alert Level . | . . . . . Low Security (%) 100 | 100 100 100 100 100 Level 1 . | . . . . . Level 2 . | . . . . . Level 3 . | . . . . . Level 4 . | . . . . . Level 5 . | . . . . . High Security . | . . . . . Max Security . | . . . . . Squads Dispatched 3 | . 3 . . . Investigation . | . . . . . Extermination . | . . . . . Reinforcement 3 | . 3 . . . Assault . | . . . . . Garrison . | . . . . . Intercept . | . . . . . Searches Triggered . | . . . . . Construction Impeded . | . . . . . Haulers Reinforced . | . . . . . Active Scanning Responses . | . . . . . Cargo Convoy Interrupts . | . . . . . Stealth | -11 -10 -10 -9 -9 --------- Run | Scr Mat Min Mat Min Distress Signals 1 | . . . 1 . Communications Jammed . | . . . . . Distress Signals . | . . . . . Times Spotted 25 | . 8 3 12 2 Peak Tracking Total 9 | . 5 3 9 2 Tactical Retreats . | . . . . . Traps | -11 -10 -10 -9 -9 ------- Run | Scr Mat Min Mat Min Traps Triggered 1 | . . . 1 . Indirectly . | . . . . . Trap Hack Attempts . | . . . . . Triggered . | . . . . . Disarmed . | . . . . . Reprogrammed . | . . . . . Reused . | . . . . . Traps Extracted . | . . . . . Installed . | . . . . . Triggered . | . . . . . Machines | -11 -10 -10 -9 -9 ---------- Run | Scr Mat Min Mat Min Machines Disabled 1 | . . . 1 . Max in Single Turn 1 | . . . 1 . Machines Sabotaged . | . . . . . Garrisons Compromised . | . . . . . Overloaded Fab Kills . | . . . . . Hacking | -11 -10 -10 -9 -9 --------- Run | Scr Mat Min Mat Min Machines Accessed 1 | . . . 1 . Terminals 1 | . . . 1 . Fabricators . | . . . . . Repair Stations . | . . . . . Recycling Units . | . . . . . Scanalyzers . | . . . . . Garrison Access . | . . . . . Total Hacks 2 | . . . 2 . Successful 1 | . . . 1 . Failed 1 | . . . 1 . Catastrophic 1 | . . . 1 . Database Lockouts . | . . . . . Manual 2 | . . . 2 . Terminals 2 | . . . 2 . Fabricators . | . . . . . Repair Stations . | . . . . . Recycling Units . | . . . . . Scanalyzers . | . . . . . Garrison Access . | . . . . . Terminal Hacks . | . . . . . Fabricator Hacks . | . . . . . Repair Station Hacks . | . . . . . Recycling Unit Hacks . | . . . . . Scanalyzer . | . . . . . Garrison Access Hacks . | . . . . . Unauthorized Hacks 1 | . . . 1 . Terminals 1 | . . . 1 . Botnet 1 | . . . 1 . Fabricators . | . . . . . Repair Stations . | . . . . . Recycling Units . | . . . . . Scanalyzers . | . . . . . Garrison Access . | . . . . . Data Cores Recovered . | . . . . . Used . | . . . . . Hacking Detections 1 | . . . 1 . Full Trace Events . | . . . . . Feedback Events . | . . . . . Feedback Blocked . | . . . . . Robot Schematics Acquired . | . . . . . Robots Built . | . . . . . Authchips . | . . . . . Time . | . . . . . Total Robot Build Rating . | . . . . . Part Schematics Acquired . | . . . . . Parts Built . | . . . . . Authchips . | . . . . . Time . | . . . . . Total Part Build Rating . | . . . . . Parts Repaired . | . . . . . Time . | . . . . . Parts Recycled . | . . . . . Recycled Matter . | . . . . . Retrieved Matter . | . . . . . Retrieved Components . | . . . . . Parts Scanalyzed . | . . . . . Part Schematics Acquired . | . . . . . Parts Damaged . | . . . . . Bothacking | -11 -10 -10 -9 -9 ------------ Run | Scr Mat Min Mat Min Used RIF Installer . | . . . . . Robots Hacked . | . . . . . Non-combat . | . . . . . Combat . | . . . . . Robot Hacks Applied . | . . . . . Relay Couplers Released . | . . . . . Fabnet Peak Effective % . | . . . . . Robots Rewired . | . . . . . Allies Hacked . | . . . . . Hacks Repelled . | . . . . . Allies | -11 -10 -10 -9 -9 -------- Run | Scr Mat Min Mat Min Total Allies . | . . . . . Largest Group . | . . . . . Highest-Rated Group . | . . . . . Highest-Rated Ally . | . . . . . Total Orders . | . . . . . Ally Attacks . | . . . . . Total Damage . | . . . . . Kills . | . . . . . Allies Corrupted . | . . . . . Allies Melted . | . . . . . Intel | -11 -10 -10 -9 -9 ------- Run | Scr Mat Min Mat Min Robot Analysis Total . | . . . . . Derelict Logs Recovered 1 | . . 1 . . Drone Launches . | . . . . . Drone Recoveries . | . . . . . Exploration | -11 -10 -10 -9 -9 ------------- Run | Scr Mat Min Mat Min Turns Passed 311 | 14 93 67 104 33 Spaces Moved 444 | 23 172 131 88 30 Core 229 | 23 153 . 23 30 Treads . | . . . . . Legs 52 | . . . 52 . Wheels . | . . . . . Hover . | . . . . . Flight 163 | . 19 131 13 . Fastest Speed 37 | 50 40 37 37 50 Average Speed 50 | 50 48 39 71 50 Slowest Speed 90 | 50 50 40 90 50 Overloaded Moves . | . . . . . Propulsion Burnouts . | . . . . . Robots Hopped 1 | . 1 . . . Cave-ins Triggered . | . . . . . Exploration Rate (%) 22 | 2 47 39 16 9 Regions Visited 4 Branch Regions 2 Pre-discovered Areas . | . . . . . Known Exits Taken . | . . . . . Unknown Exits Taken 4 | 1 1 1 1 . Scrap Searched 1 | . . . . 1 Spaces Dug . | . . . . . Terrain Destroyed 49 | . . 34 15 . Melee . | . . . . . Projectile . | . . . . . AOE 49 | . . 34 15 . Terrain Rammed . | . . . . . Walls Destroyed . | . . . . . Machines Disabled . | . . . . . Actions | -11 -10 -10 -9 -9 --------- Run | Scr Mat Min Mat Min Total 494 | 24 177 140 113 40 Wait 5 | 2 . 2 1 . Move 438 | 22 169 130 87 30 Hop 1 | . 1 . . . Pick Up 4 | . . 2 1 1 Fast Attach 8 | . 4 2 . 2 Attach 3 | . . . 3 . Detach . | . . . . . Swap 1 | . . . 1 . Drop . | . . . . . Fire 29 | . . 4 18 7 Melee . | . . . . . Ram 3 | . 3 . . . Kick 2 | . . . 2 . Crush . | . . . . . Escape Stasis . | . . . . . Rewire . | . . . . . Trap . | . . . . . Miscellaneous . | . . . . . Route ------- -11/Scrapyard -10/Materials (discovered 2 exits: [*Min x2]) -10/Mines -9/Materials -9/Mines History --------- Turn | Location | Event 2 | -11/Scrapyard | Met Revision 17 7 | -11/Scrapyard | Discovered new exit (range 16) 15 | -11/Scrapyard | Entered Materials 75 | -10/Materials | Discovered new exit (range 8) 107 | -10/Materials | Discovered new exit (range 4) 108 | -10/Materials | Entered Mines 116 | -10/Mines | YI-UF0 nonchalantly dropped a Grenade Launcher on the ground 136 | -10/Mines | Learned Materials terminal intel 172 | -10/Mines | Discovered new exit (range 6) 175 | -10/Mines | Entered Materials 175 | -9/Materials | Evolved 2 slots: Utility x2 176 | -9/Materials | Loaded intel: 12 terminal locations 267 | -9/Materials | Core integrity fell below 50% 276 | -9/Materials | Discovered new exit (range 8) 279 | -9/Materials | Entered Mines 292 | -9/Mines | Core integrity fell below 20% 305 | -9/Mines | Lost 9 parts (1p3n1u4w) 312 | -9/Mines | Destroyed by L-31 Rogue with Katana Last Messages --------------- 00276_ EXIT=FOUND 00277_ PSOF>XTAGV/TJ%MTBU,=R FYC28LJCVEV70DT 00278_ K-01 Serf collects debris. LOCATION=UNKNOWN GOAL=ESCAPE 00286_ Searching scrap... 00286_ Found Lrg. Storage Unit. 00286_ Found Beam Rifle. 00286_ Found Huge Storage Unit. 00286_ Found Imp. Ion Engine. 00286_ Found 21 Matter. 00287_ Acquired Beam Rifle. 00289_ Acquired Lrg. Storage Unit. 00291_ Beam Rifle severed. 00293_ System corrupted: Substantial component data lost. 00294_ Acquired Beam Rifle. 00297_ Destroyed Melee Analysis Suite. 00309_ System corrupted: Heat flow error (+293). 00309_ System corrupted: Beam Rifle failed to cycle. 00312_ Beam Rifle destroyed. Map ----- +----------------------------------------------------+ | | | | | | | | | | | | | | | | | | | | | | | | | | | | | | | | | | | | | | | | | | | ????????????????????????????????????????????? | | ????????????????????????####????????????????? | | ???????????????????###### ##???????????????? | | ??????????????????## ##??????????????? | | ?????????????????## @ ##?????????????? | | ????????????????## l ##????????????? | | ????????????????# ####?????????? | | ????????????????# %#?????????? | | ????????????????# ## *!#########?? | | ????????????????## #### #### #?? | | ?????????????????#### #??## #??# #?? | | ????????????????????## ##### #### #?? | | ?????????????????????## ## #?? | | ??????????????????????## ## ######## #?? | | ???????????????????????# #?????????# #?? | | ???????????????????????#g#?????????########?? | | ???????????????????????# ??????????????????? | | ???????????????????????# #??????????????????? | | ??????????????????????? ??????????????????? | | ???????????????????????## ??????????????????? | | ????????????????????????? ??????????????????? | | ????????????????????????? ??????????????????? | | ????????????????????????????????????????????? | | ????????????????????????????????????????????? | | ????????????????????????????????????????????? | | ????????????????????????????????????????????? | | ????????????????????????????????????????????? | | ????????????????????????????????????????????? | | ????????????????????????????????????????????? | +----------------------------------------------------+ Best States ------------- Heat Dissipation 28 Energy Generation 10 Energy Capacity 125 Matter Stores 100 Matter Capacity 300 Sight Range 18 Terrain Scan Density 10 Evasion (%) 62 Item Schematics ----------------- None Robot Schematics ------------------ None Fabricated ------------ Nothing Alien Tech Used ----------------- None Achievements -------------- None Challenges ------------ None Game ------ Seed ScatterArcTerrabomb Manual? 0 Play Time 00:14:17 Cumulative 54.2 hours Start 2022.03.20 @ 20:40:40 End 2022.03.20 @ 20:56:54 Sessions 1 Manual Loads 0 Difficulty Rogue Special Mode None Game No. 52 Rogue 52 Adventurer 0 Explorer 0 Win Type - Total 2 Types 2/0/0/0/0/0/0/0/0 Lore% 22 Gallery% 36 Achievement% 27 Wizard Run 0 Options --------- ASCII 0 Keyboard 0 Movement Mouse Keybinds 1 Fullscreen 2 Font 18/X11 Map View 76x50 Tactical HUD 1 Map Filters NONE Filters BRIGHTNESS(150) Steam 1 RUN: 37b885a0-f946-4569-98d7-fc612e64c5d8